bitfinex-derivatives/quotes_BTCF0:USTF0_20230106
["timestamp","ask_amount","ask_price","bid_price","bid_amount"]
[1672983496032,0.31794399,16822.0,16821.0,0.00789177]
[1672983496245,0.61864399,16822.0,16821.0,0.00789177]
[1672983499808,0.31794399,16822.0,16821.0,0.00789177]
[1672983500122,0.61864399,16822.0,16821.0,0.00789177]
[1672983501809,0.31794399,16822.0,16821.0,0.00789177]
[1672983502227,0.61864399,16822.0,16821.0,0.00789177]
[1672983502439,0.31794399,16822.0,16821.0,0.00789177]
[1672983502865,0.61864399,16822.0,16821.0,0.00789177]
[1672983504749,0.31794399,16822.0,16821.0,0.00789177]
[1672983504963,0.61864399,16822.0,16821.0,0.00789177]
[1672983506741,0.31794399,16822.0,16821.0,0.00789177]
[1672983507163,0.61864399,16822.0,16821.0,0.00789177]
[1672983511902,0.31794399,16822.0,16821.0,0.00789177]
[1672983523666,0.31794399,16822.0,16821.0,0.00765772]
[1672983544062,0.31794399,16822.0,16821.0,0.90265772]
[1672983544587,0.31794399,16822.0,16821.0,0.9918816]
[1672983552159,0.31794399,16822.0,16821.0,0.90265772]
[1672983559200,0.31794399,16822.0,16821.0,0.60195772]
[1672983563303,0.31794399,16822.0,16821.0,0.6911816]
[1672983563830,0.31794399,16822.0,16821.0,0.60195772]
[1672983564045,0.31794399,16822.0,16821.0,0.6911816]
[1672983567089,0.31794399,16822.0,16821.0,0.9918816]
[1672983567292,0.31794399,16822.0,16821.0,0.90265772]
[1672983569821,0.31794399,16822.0,16821.0,0.90249311]
[1672983571082,0.31794399,16822.0,16821.0,0.99171699]
[1672983572133,0.31794399,16822.0,16821.0,0.90249311]
[1672983572861,0.31794399,16822.0,16821.0,0.99171699]
[1672983574434,0.31794399,16822.0,16821.0,0.90249311]
[1672983574646,0.31794399,16822.0,16821.0,0.99171699]
[1672983574856,0.31794399,16822.0,16821.0,0.69101699]
[1672983581166,0.31794399,16822.0,16821.0,0.82456153]
[1672983582540,0.31794399,16822.0,16821.0,0.69101699]
[1672983582750,0.31794399,16822.0,16821.0,0.82456153]
[1672983586113,0.31794399,16822.0,16821.0,1.12526153]
[1672983586521,0.31794399,16822.0,16821.0,0.82456153]
[1672983586742,0.31794399,16822.0,16821.0,1.12526153]
[1672983588629,0.31794399,16822.0,16821.0,0.99171699]
[1672983589792,0.31794399,16822.0,16821.0,0.90249311]
[1672983593671,0.31794399,16822.0,16821.0,0.60179311]
[1672983597154,0.31794399,16822.0,16821.0,0.69101699]
[1672983604092,0.31794399,16822.0,16821.0,0.60179311]
[1672983604289,0.31794399,16822.0,16821.0,0.69101699]
[1672983604712,0.31794399,16822.0,16821.0,0.60179311]
[1672983612280,0.31794399,16822.0,16821.0,0.69101699]
[1672983617965,0.31794399,16822.0,16821.0,0.69078887]
[1672983619744,0.31794399,16822.0,16821.0,0.60156499]
[1672983627216,0.31794399,16822.0,16821.0,0.69078887]
[1672983634774,0.31794399,16822.0,16821.0,0.60156499]
[1672983637825,0.31784201,16822.0,16821.0,0.60156499]
[1672983642445,0.31784201,16822.0,16821.0,0.69078887]
[1672983645383,0.31784201,16822.0,16821.0,0.60156499]
[1672983645603,0.31784201,16822.0,16821.0,0.69078887]
[1672983645805,0.31784201,16822.0,16821.0,0.60156499]
[1672983648443,0.31784201,16822.0,16821.0,0.69078887]
[1672983649914,0.31784201,16822.0,16821.0,0.60156499]
[1672983657263,0.31784201,16822.0,16821.0,0.69078887]
[1672983658951,0.61854201,16822.0,16821.0,0.69078887]
[1672983659797,0.31784201,16822.0,16821.0,0.69078887]
[1672983660000,0.61854201,16822.0,16821.0,0.69078887]
[1672983663059,0.31784201,16822.0,16821.0,0.69078887]
[1672983666737,0.31784201,16822.0,16821.0,0.82433341]
[1672983667156,0.31784201,16822.0,16821.0,0.69078887]
[1672983667367,0.31784201,16822.0,16821.0,0.82433341]
[1672983667569,0.31784201,16822.0,16821.0,0.69078887]
[1672983667995,0.31784201,16822.0,16821.0,0.82433341]
[1672983668206,0.31784201,16822.0,16821.0,0.69078887]
[1672983669461,0.31784201,16822.0,16821.0,0.82433341]
[1672983669676,0.31784201,16822.0,16821.0,0.69078887]
[1672983670845,0.31784201,16822.0,16821.0,0.09648887]
[1672983671048,0.31784201,16822.0,16821.0,0.00726499]
[1672983674953,0.91924201,16822.0,16821.0,0.00726499]
[1672983679784,0.31784201,16822.0,16821.0,0.00726499]
[1672983679991,0.61854201,16822.0,16821.0,0.00726499]
[1672983684085,0.31784201,16822.0,16821.0,0.00726499]
[1672983684297,0.61854201,16822.0,16821.0,0.00726499]
[1672983684823,0.31784201,16822.0,16821.0,0.00726499]
[1672983685038,0.61854201,16822.0,16821.0,0.00726499]
[1672983687046,0.31784201,16822.0,16821.0,0.00726499]
[1672983687349,0.61854201,16822.0,16821.0,0.00726499]
[1672983691551,0.61854201,16822.0,16821.0,0.00719102]
[1672983697124,0.31784201,16822.0,16821.0,0.00719102]
[1672983697333,0.61854201,16822.0,16821.0,0.00719102]
[1672983699653,0.31784201,16822.0,16821.0,0.00719102]
[1672983699864,0.61854201,16822.0,16821.0,0.00719102]
[1672983703532,0.31784201,16822.0,16821.0,0.00719102]
[1672983703756,0.61854201,16822.0,16821.0,0.00719102]
[1672983704394,0.61842437,16822.0,16821.0,0.00719102]
[1672983711534,0.31772437,16822.0,16821.0,0.00719102]
[1672983711749,0.61842437,16822.0,16821.0,0.00719102]
[1672983712074,0.31772437,16822.0,16821.0,0.00719102]
[1672983712294,0.61842437,16822.0,16821.0,0.00719102]
[1672983714816,0.31772437,16822.0,16821.0,0.00719102]
[1672983715064,0.61842437,16822.0,16821.0,0.00719102]
[1672983718076,0.31772437,16822.0,16821.0,0.00719102]
[1672983718402,0.61842437,16822.0,16821.0,0.00719102]
[1672983718709,0.31772437,16822.0,16821.0,0.00719102]
[1672983718927,0.61842437,16822.0,16821.0,0.00719102]
[1672983729856,0.91912437,16822.0,16821.0,0.00719102]
[1672983731854,0.61842437,16822.0,16821.0,0.00719102]
[1672983733223,0.91912437,16822.0,16821.0,0.00719102]
[1672983734270,0.61842437,16822.0,16821.0,0.00719102]
[1672983758837,0.61842437,16822.0,16821.0,0.00706793]
[1672983761586,0.31772437,16822.0,16821.0,0.00706793]
[1672983761795,0.91912437,16822.0,16821.0,0.00706793]
[1672983766721,0.31772437,16822.0,16821.0,0.00706793]
[1672983766939,0.91912437,16822.0,16821.0,0.00706793]
[1672983778385,0.31772437,16822.0,16821.0,0.00706793]
[1672983778706,0.91912437,16822.0,16821.0,0.00706793]
[1672983781023,0.31772437,16822.0,16821.0,0.00706793]
[1672983781228,0.91912437,16822.0,16821.0,0.00706793]
[1672983782805,0.31772437,16822.0,16821.0,0.00706793]
[1672983783020,0.91912437,16822.0,16821.0,0.00706793]
[1672983790489,0.3,16821.0,16819.0,0.7811]
[1672983790699,0.52264399,16820.0,16817.0,0.3239]
[1672983790904,0.52264399,16818.0,16817.0,0.3]
[1672983792380,0.53364399,16818.0,16817.0,0.373]
[1672983793123,0.23294399,16818.0,16817.0,0.373]
[1672983793323,0.83434399,16818.0,16817.0,0.373]
[1672983793529,0.82934399,16818.0,16817.0,0.355]
[1672983798374,0.82934399,16818.0,16817.0,0.055]
[1672983802379,0.82934399,16818.0,16817.0,0.04548611]
[1672983803000,0.3007,16815.0,16807.0,0.17828521]
[1672983803212,0.3007,16813.0,16805.0,0.40076866]
[1672983803425,0.3007,16813.0,16803.0,0.22287993]
[1672983803426,0.3007,16806.0,16804.0,0.0890024]
[1672983803641,0.3007,16806.0,16803.0,0.0890024]
[1672983803842,0.3007,16806.0,16803.0,0.3]
[1672983804050,0.3007,16804.0,16803.0,0.3]
[1672983804682,0.3007,16806.0,16803.0,0.6]
[1672983804892,0.3007,16807.0,16805.0,0.3]
[1672983805098,0.3007,16810.0,16805.0,1.12875601]
[1672983805317,0.22194399,16808.0,16805.0,0.017]
[1672983805529,0.3007,16807.0,16805.0,0.017]
[1672983805742,0.3007,16809.0,16805.0,0.5943]
[1672983805939,0.136,16807.0,16805.0,0.8963]
[1672983806152,0.136,16807.0,16806.0,0.8943]
[1672983806371,0.043,16808.0,16806.0,1.195]
[1672983806789,0.043,16808.0,16807.0,0.8943]
[1672983807410,0.3007,16812.0,16808.0,0.3]
[1672983807831,0.2,16811.0,16808.0,0.3]
[1672983808054,0.3007,16812.0,16808.0,1.1943]
[1672983808468,0.4197,16812.0,16808.0,1.2003]
[1672983808681,0.4197,16812.0,16808.0,1.501]
[1672983808899,0.119,16811.0,16808.0,1.501]
[1672983809309,0.4197,16812.0,16808.0,1.501]
[1672983809733,0.3007,16812.0,16808.0,1.495]
[1672983809953,0.119,16811.0,16808.0,1.501]
[1672983810894,0.3007,16812.0,16808.0,1.495]
[1672983811102,0.4197,16812.0,16808.0,1.501]
[1672983811834,0.3007,16812.0,16808.0,1.495]
[1672983812045,0.3007,16812.0,16808.0,1.502]
[1672983812046,0.093,16811.0,16808.0,1.502]
[1672983812253,0.3007,16812.0,16808.0,1.495]
[1672983812471,0.3077,16812.0,16808.0,1.551]
[1672983812676,0.007,16812.0,16811.0,0.5943]
[1672983813622,0.52264399,16813.0,16811.0,0.5943]
[1672983813829,0.52264399,16813.0,16812.0,0.3]
[1672983814778,0.64164399,16813.0,16812.0,0.3]
[1672983815203,0.64164399,16813.0,16812.0,0.006]
[1672983815615,0.64164399,16813.0,16808.0,0.3]
[1672983815832,0.52264399,16809.0,16808.0,0.3]
[1672983816148,0.3007,16809.0,16806.0,0.3047]
[1672983816357,0.3007,16809.0,16806.0,0.3007]
[1672983816676,1.12334399,16812.0,16807.0,0.8943]
[1672983816991,0.097,16809.0,16808.0,0.006]
[1672983817404,1.12334399,16812.0,16808.0,0.3]
[1672983817614,0.007,16809.0,16808.0,0.3]
[1672983817832,0.007,16809.0,16808.0,1.195]
[1672983818044,0.024,16809.0,16808.0,1.199]
[1672983818772,0.024,16809.0,16808.0,0.8983]
[1672983819404,0.3007,16812.0,16809.0,0.1]
[1672983820153,0.52264399,16812.0,16809.0,0.1]
[1672983820677,0.4037,16812.0,16809.0,0.107]
[1672983821508,0.22194399,16811.0,16809.0,0.107]
[1672983821724,0.22194399,16811.0,16809.0,0.101]
[1672983822564,0.3097,16812.0,16809.0,0.101]
[1672983822781,0.22194399,16811.0,16809.0,0.101]
[1672983822993,0.22194399,16811.0,16809.0,0.108]
[1672983824040,0.23094399,16811.0,16809.0,0.101]
[1672983825828,0.22894399,16811.0,16809.0,0.7593]
[1672983826038,0.22194399,16811.0,16809.0,0.6943]
[1672983826251,0.30494399,16811.0,16809.0,0.7023]
[1672983828972,0.22194399,16811.0,16809.0,0.6943]
[1672983829187,0.23094399,16811.0,16809.0,0.6953]
[1672983835703,0.009,16811.0,16810.0,0.895]
[1672983836549,0.22194399,16812.0,16810.0,0.895]
[1672983836759,0.22194399,16812.0,16810.0,0.903]
[1672983836760,0.083,16811.0,16810.0,0.903]
[1672983837909,0.083,16811.0,16810.0,0.6023]
[1672983838229,0.083,16811.0,16810.0,0.903]
[1672983838450,0.009,16811.0,16810.0,0.896]
[1672983838972,0.007,16811.0,16810.0,0.96]
[1672983840328,0.007,16811.0,16810.0,0.6593]
[1672983841381,0.009,16811.0,16810.0,0.001]
[1672983845610,0.3097,16811.0,16810.0,0.001]
[1672983846127,0.6097,16811.0,16810.0,0.001]
[1672983848019,0.3097,16811.0,16810.0,0.001]
[1672983848430,0.6097,16811.0,16810.0,0.001]
[1672983848641,0.3097,16811.0,16810.0,0.001]
[1672983848846,0.009,16811.0,16810.0,0.001]
[1672983854639,0.309,16811.0,16810.0,0.001]
[1672983855580,0.009,16811.0,16810.0,0.001]
[1672983858002,0.009,16811.0,16810.0,0.0900024]
[1672983858422,0.009,16811.0,16810.0,0.81778345]
[1672983859894,0.009,16811.0,16810.0,0.6843024]
[1672983860517,0.009,16811.0,16810.0,0.5953]
[1672983862934,0.009,16811.0,16810.0,0.6843024]
[1672983863464,0.22194399,16814.0,16810.0,0.6843024]
[1672983863667,0.22194399,16814.0,16812.0,0.895]
[1672983864307,0.22194399,16814.0,16813.0,0.3]
[1672983865667,0.22194399,16814.0,16812.0,0.008]
[1672983865668,0.61764399,16814.0,16812.0,0.008]
[1672983866090,0.3,16813.0,16811.0,1.195]
[1672983866292,0.22194399,16812.0,16811.0,1.195]
[1672983866506,0.22194399,16812.0,16811.0,0.6007]
[1672983867455,0.31694399,16812.0,16811.0,0.6087]
[1672983871971,0.31694399,16812.0,16811.0,0.308]
[1672983893946,0.095,16812.0,16811.0,0.308]
[1672983894158,0.31694399,16812.0,16811.0,0.308]
[1672983899509,0.31694399,16812.0,16811.0,0.3970024]
[1672983900141,0.31694399,16812.0,16811.0,0.308]
[1672983900354,0.31694399,16812.0,16811.0,0.3970024]
[1672983901089,0.31694399,16812.0,16811.0,0.308]
[1672983903820,0.61694399,16812.0,16811.0,0.308]
[1672983904560,0.31694399,16812.0,16811.0,0.308]
[1672983910754,0.31694399,16812.0,16811.0,0.30782612]
[1672983913692,0.61694399,16812.0,16811.0,0.30782612]
[1672983917486,0.31694399,16812.0,16811.0,0.30782612]
[1672983920107,0.61764399,16812.0,16811.0,0.30782612]
[1672983940829,0.31694399,16812.0,16811.0,0.30782612]
[1672983951772,0.31694399,16812.0,16811.0,0.53030957]
[1672983952299,0.095,16812.0,16811.0,0.53030957]
[1672983952502,0.095,16812.0,16811.0,0.74200717]
[1672983952723,0.095,16812.0,16811.0,1.33630717]
[1672983952917,0.095,16812.0,16811.0,1.4255607]
[1672983954186,0.095,16812.0,16811.0,1.33630717]
[1672983954710,0.095,16812.0,16811.0,1.42551765]
[1672983955031,0.095,16812.0,16811.0,1.42548242]
[1672983956085,0.095,16812.0,16811.0,1.29200137]
[1672983956285,0.095,16812.0,16811.0,1.42548242]
[1672983957128,0.095,16812.0,16811.0,1.29200137]
[1672983957861,0.095,16812.0,16811.0,1.42548242]
[1672983958068,0.095,16812.0,16811.0,1.29200137]
[1672983959125,0.095,16812.0,16811.0,1.29178412]
[1672983959645,0.31694399,16812.0,16811.0,1.20260887]
[1672983960488,0.31694399,16812.0,16811.0,0.90190887]
[1672983969529,0.31694399,16812.0,16811.0,0.99108412]
[1672983972688,0.31694399,16812.0,16811.0,1.29178412]
[1672983973642,0.095,16812.0,16811.0,1.42526517]
[1672983977210,0.31694399,16812.0,16811.0,1.42526517]
[1672983978371,0.31694399,16812.0,16811.0,1.29178412]
[1672983978999,0.31694399,16812.0,16811.0,1.42526517]
[1672983979944,0.31694399,16812.0,16811.0,1.29178412]
[1672983982783,0.31694399,16812.0,16811.0,1.20260887]
[1672983986992,0.31694399,16812.0,16811.0,1.29178412]
[1672983987827,0.31694399,16812.0,16811.0,1.42526517]
[1672983989300,0.31694399,16812.0,16811.0,1.33608992]
[1672983989931,0.31694399,16812.0,16811.0,1.63678992]
[1672983990560,0.31694399,16812.0,16811.0,1.72599697]
[1672983991190,0.31694399,16812.0,16811.0,1.63678992]
[1672983993718,0.31694399,16812.0,16811.0,1.81507513]
[1672983994353,0.31694399,16812.0,16811.0,2.30731433]
[1672983995096,0.31694399,16812.0,16811.0,1.63678992]
[1672983996768,0.31694399,16812.0,16811.0,1.33608992]
[1672983997406,0.31694399,16812.0,16811.0,1.87311825]
[1672983998874,0.31694399,16812.0,16811.0,2.00693199]
[1672983999090,0.31694399,16812.0,16811.0,1.87311825]
[1672984001606,0.31694399,16812.0,16811.0,2.17381825]
[1672984002335,0.31694399,16812.0,16811.0,2.30761104]
[1672984002556,0.31694399,16812.0,16811.0,2.17381825]
[1672984004977,0.31694399,16812.0,16811.0,2.39669818]
[1672984005296,0.31694399,16812.0,16811.0,2.21841297]
[1672984006450,0.31694399,16812.0,16811.0,2.21823452]
[1672984007814,0.31694399,16812.0,16811.0,2.39662058]
[1672984008024,0.31694399,16812.0,16811.0,2.21823452]
[1672984010239,0.31694399,16812.0,16811.0,2.17373207]
[1672984012130,0.3167139,16812.0,16811.0,2.17373207]
[1672984017706,0.3167139,16812.0,16811.0,2.396612]
[1672984018232,0.3167139,16812.0,16811.0,2.17373207]
[1672984021697,0.3167139,16812.0,16811.0,1.57233207]
[1672984021907,0.3167139,16812.0,16811.0,2.17373207]
[1672984022115,0.3167139,16812.0,16811.0,2.396612]
[1672984022537,0.3167139,16812.0,16811.0,2.39657893]
[1672984023169,0.3167139,16812.0,16811.0,2.173699]
[1672984024117,0.3167139,16812.0,16811.0,1.872999]
[1672984024430,0.3167139,16812.0,16811.0,2.173699]
[1672984028734,0.22994399,16812.0,16811.0,2.165699]
[1672984029152,0.22794399,16812.0,16811.0,2.230699]
[1672984029893,0.22794399,16812.0,16811.0,1.929999]
[1672984030092,0.22794399,16812.0,16811.0,2.230699]
[1672984035990,0.22794399,16812.0,16811.0,1.629299]
[1672984036202,0.22794399,16812.0,16811.0,1.929999]
[1672984044073,0.22794399,16812.0,16811.0,2.230699]
[1672984045131,0.22794399,16812.0,16811.0,1.929999]
[1672984051549,0.22794399,16812.0,16811.0,1.629299]
[1672984051857,0.22794399,16812.0,16811.0,2.230699]
[1672984052912,0.22794399,16812.0,16811.0,2.45357893]
[1672984053123,0.22794399,16812.0,16811.0,2.230699]
[1672984054693,0.22794399,16812.0,16811.0,1.629299]
[1672984054903,0.22794399,16812.0,16811.0,1.929999]
[1672984057010,0.22794399,16812.0,16811.0,1.629299]
[1672984057210,0.22794399,16812.0,16811.0,1.929999]
[1672984057844,0.22794399,16812.0,16811.0,2.15287893]
[1672984058056,0.22794399,16812.0,16811.0,2.45357893]
[1672984058264,0.22794399,16812.0,16811.0,2.230699]
[1672984058475,0.22794399,16812.0,16811.0,2.45357893]
[1672984058682,0.22794399,16812.0,16811.0,2.230699]
[1672984062164,0.22794399,16812.0,16811.0,2.23060831]
[1672984063005,0.22794399,16812.0,16811.0,1.92990831]
[1672984070347,0.22794399,16812.0,16811.0,2.15278824]
[1672984071725,0.22794399,16812.0,16811.0,1.97444383]
[1672984071932,0.22794399,16812.0,16811.0,2.15299294]
[1672984072351,0.22794399,16812.0,16811.0,1.97444383]
[1672984077405,0.22794399,16812.0,16811.0,2.15299539]
[1672984077724,0.22794399,16812.0,16811.0,1.93011524]
[1672984078033,0.22794399,16812.0,16811.0,2.23081524]
[1672984079596,0.22794399,16812.0,16811.0,2.45369517]
[1672984080029,0.22794399,16812.0,16811.0,2.23081524]
[1672984085183,0.22794399,16812.0,16811.0,2.45369517]
[1672984085602,0.22794399,16812.0,16811.0,2.27514383]
[1672984087707,0.22794399,16812.0,16811.0,1.67374383]
[1672984087920,0.22794399,16812.0,16811.0,2.27514383]
[1672984089591,0.22794399,16812.0,16811.0,2.45366762]
[1672984090112,0.22794399,16812.0,16811.0,1.85226762]
[1672984090437,0.22794399,16812.0,16811.0,2.45366762]
[1672984090959,0.22794399,16812.0,16811.0,2.23078769]
[1672984091596,0.22794399,16812.0,16811.0,1.93008769]
[1672984091909,0.22794399,16812.0,16811.0,1.39324133]
[1672984094423,0.22794399,16812.0,16811.0,1.48249454]
[1672984095484,0.22794399,16812.0,16811.0,1.34859294]
[1672984095684,0.22794399,16812.0,16811.0,0.75429294]
[1672984096633,0.22794399,16812.0,16811.0,0.66503973]
[1672984097158,0.22794399,16812.0,16811.0,0.75429294]
[1672984097590,0.22794399,16812.0,16811.0,0.66503973]
[1672984102102,0.22794399,16812.0,16811.0,0.36433973]
[1672984115759,0.22794399,16812.0,16811.0,0.36425344]
[1672984129210,0.22794399,16812.0,16811.0,0.45350665]
[1672984130377,0.22794399,16812.0,16811.0,0.36425344]
[1672984133519,0.22794399,16812.0,16811.0,0.45350665]
[1672984134267,0.22794399,16812.0,16811.0,0.36425344]
[1672984134465,0.22794399,16812.0,16811.0,0.45350665]
[1672984134784,0.22794399,16812.0,16811.0,0.36425344]
[1672984134993,0.22794399,16812.0,16811.0,0.45350665]
[1672984135205,0.22794399,16812.0,16811.0,0.75420665]
[1672984135406,0.22794399,16812.0,16811.0,0.66495344]
[1672984136568,0.22794399,16812.0,16811.0,0.75420665]
[1672984138667,0.22794399,16812.0,16811.0,0.45350665]
[1672984139092,0.22794399,16812.0,16811.0,0.75420665]
[1672984139936,0.22794399,16812.0,16811.0,0.88810825]
[1672984140359,0.22794399,16812.0,16811.0,0.75420665]
[1672984141091,0.22794399,16812.0,16811.0,0.45350665]
[1672984145291,0.22794399,16812.0,16811.0,0.36425344]
[1672984145710,0.22794399,16812.0,16811.0,0.45350665]
[1672984145921,0.22794399,16812.0,16811.0,0.75420665]
[1672984151071,0.22794399,16812.0,16811.0,0.88810825]
[1672984152759,0.22794399,16812.0,16811.0,0.79885504]
[1672984153498,0.22794399,16812.0,16811.0,0.88810652]
[1672984154337,0.22794399,16812.0,16811.0,0.79885504]
[1672984156651,0.22794399,16812.0,16811.0,0.88809682]
[1672984160450,0.22794399,16812.0,16811.0,0.75419522]
[1672984164350,0.22794399,16812.0,16811.0,0.75408332]
[1672984164758,0.22794399,16812.0,16811.0,0.45338332]
[1672984165084,0.22794399,16812.0,16811.0,0.75408332]
[1672984167915,0.22794399,16812.0,16811.0,0.88798492]
[1672984169077,0.22794399,16812.0,16811.0,0.75408332]
[1672984169491,0.22794399,16812.0,16811.0,0.88798492]
[1672984169905,0.22794399,16812.0,16811.0,0.75408332]
[1672984170850,0.22794399,16812.0,16811.0,0.88798492]
[1672984173465,0.006,16812.0,16811.0,0.88798492]
[1672984173676,0.22794399,16812.0,16811.0,0.79874314]
[1672984175365,0.22794399,16812.0,16811.0,0.49804314]
[1672984175577,0.22794399,16812.0,16811.0,0.79874314]
[1672984180925,0.22794399,16812.0,16811.0,0.97726693]
[1672984181140,0.22794399,16812.0,16811.0,1.33559541]
[1672984181769,0.22794399,16812.0,16811.0,1.46945785]
[1672984182508,0.22794399,16812.0,16811.0,1.46946168]
[1672984182715,0.22794399,16812.0,16811.0,1.46946244]
[1672984182922,0.22794399,16812.0,16811.0,0.79870398]
[1672984184923,0.22794399,16812.0,16811.0,0.49800398]
[1672984185130,0.22794399,16812.0,16811.0,0.79870398]
[1672984185557,0.22794399,16812.0,16811.0,1.39300398]
[1672984187343,0.22794399,16812.0,16811.0,1.48225388]
[1672984190388,0.22794399,16812.0,16811.0,1.48225703]
[1672984191126,0.22794399,16812.0,16811.0,1.39300398]
[1672984191435,0.22794399,16812.0,16811.0,1.48225627]
[1672984191850,0.006,16812.0,16811.0,1.39300398]
[1672984192068,0.22794399,16812.0,16811.0,2.063764]
[1672984192277,0.22794399,16812.0,16811.0,1.92990156]
[1672984192698,0.22794399,16812.0,16811.0,2.06376828]
[1672984193010,0.22794399,16812.0,16811.0,1.92990156]
[1672984197946,0.22794399,16812.0,16811.0,1.09227925]
[1672984198156,0.22794399,16812.0,16811.0,1.87220304]
[1672984198584,0.22794399,16812.0,16811.0,1.69367925]
[1672984199103,0.22794399,16812.0,16811.0,1.87220304]
[1672984199422,0.22794399,16812.0,16811.0,2.36441583]
[1672984199945,0.22794399,16812.0,16811.0,1.69367925]
[1672984204467,0.22794399,16812.0,16811.0,1.87220304]
[1672984205306,0.22794399,16812.0,16811.0,1.73836533]
[1672984205512,0.22794399,16812.0,16811.0,2.23057812]
[1672984206463,0.21908464,16812.0,16811.0,2.45345805]
[1672984206774,0.21908464,16812.0,16811.0,2.27493426]
[1672984210550,0.21908464,16812.0,16811.0,2.45331797]
[1672984212027,0.21908464,16812.0,16811.0,2.23044151]
[1672984212767,0.21908464,16812.0,16811.0,1.69363951]
[1672984213182,0.21908464,16812.0,16811.0,1.78284095]
[1672984214235,0.21908464,16812.0,16811.0,1.71784095]
[1672984214546,0.22608464,16812.0,16811.0,1.71784095]
[1672984216021,0.22608464,16812.0,16811.0,1.58404298]
[1672984217072,0.22608464,16812.0,16811.0,1.71784095]
[1672984220542,0.22608464,16812.0,16811.0,1.62863951]
[1672984224843,0.22608464,16812.0,16811.0,1.32793951]
[1672984227996,0.22608464,16812.0,16811.0,1.28335057]
[1672984228525,0.22608464,16812.0,16811.0,1.41714854]
[1672984228737,0.22608464,16812.0,16811.0,1.11644854]
[1672984229150,0.22608464,16812.0,16811.0,1.41714854]
[1672984234096,0.22608464,16812.0,16811.0,1.32793951]
[1672984234303,0.22608464,16812.0,16811.0,1.41715205]
[1672984234518,0.22608464,16812.0,16811.0,1.32793951]
[1672984235456,0.22608464,16812.0,16811.0,1.86475671]
[1672984235781,0.22608464,16812.0,16811.0,1.32796059]
[1672984236728,0.22608464,16812.0,16811.0,1.41717364]
[1672984237454,0.22608464,16812.0,16811.0,1.28335459]
[1672984237659,0.22608464,16812.0,16811.0,0.68905459]
[1672984237875,0.22608464,16812.0,16811.0,0.59984154]
[1672984238615,0.52608464,16812.0,16811.0,0.59984154]
[1672984239557,0.52608464,16812.0,16811.0,0.29914154]
[1672984245873,0.22608464,16812.0,16811.0,0.29914154]
[1672984257850,0.22608464,16812.0,16811.0,0.29894816]
[1672984280549,0.52608464,16812.0,16811.0,0.29894816]
[1672984282659,0.52608464,16812.0,16810.0,0.3]
[1672984282975,0.3007,16811.0,16810.0,0.3]
[1672984284026,0.005,16811.0,16810.0,0.365]
[1672984285916,0.078,16811.0,16810.0,0.307]
[1672984287381,0.29708464,16811.0,16810.0,0.307]
[1672984288021,0.29708464,16811.0,16810.0,0.39621305]
[1672984289062,0.29708464,16811.0,16810.0,0.307]
[1672984289695,0.29708464,16811.0,16810.0,0.39621305]
[1672984291275,0.29708464,16811.0,16810.0,0.307]
[1672984292324,0.29708464,16811.0,16810.0,0.39621305]
[1672984293903,0.29708464,16811.0,16810.0,0.307]
[1672984295794,0.29708464,16811.0,16810.0,0.007]
[1672984308618,0.29708464,16811.0,16810.0,0.00690463]
[1672984322289,0.89848464,16811.0,16810.0,0.00690463]
[1672984327021,0.29708464,16811.0,16810.0,0.00690463]
[1672984327340,0.59778464,16811.0,16810.0,0.00690463]
[1672984347946,0.29708464,16811.0,16810.0,0.00690463]
[1672984355830,0.59778464,16811.0,16810.0,0.00690463]
[1672984359820,0.59778464,16811.0,16810.0,0.00671453]
[1672984360668,0.29708464,16811.0,16810.0,0.00671453]
[1672984360877,0.59778464,16811.0,16810.0,0.00671453]
[1672984363922,0.3787,16811.0,16810.0,0.00671453]
[1672984364140,0.59778464,16811.0,16810.0,0.00671453]
[1672984365398,0.29708464,16811.0,16810.0,0.00671453]
[1672984365721,0.59778464,16811.0,16810.0,0.00671453]
[1672984368133,0.29708464,16811.0,16810.0,0.00671453]
[1672984372755,0.29708464,16811.0,16810.0,0.30741453]
[1672984374122,0.078,16811.0,16810.0,0.30741453]
[1672984374347,0.078,16811.0,16810.0,0.39662758]
[1672984376546,0.29708464,16811.0,16810.0,0.39662758]
[1672984376756,0.29708464,16811.0,16810.0,0.30741453]
[1672984377694,0.29708464,16811.0,16810.0,0.39662758]
[1672984377905,0.29708464,16811.0,16810.0,0.30741453]
[1672984382210,0.29708464,16811.0,16810.0,0.39662758]
[1672984382427,0.29708464,16811.0,16810.0,0.30741453]
[1672984385160,0.29708464,16811.0,16810.0,0.39662758]
[1672984385369,0.29708464,16811.0,16810.0,0.30741453]
[1672984385682,0.29708464,16811.0,16810.0,0.39662758]
[1672984398397,0.29708464,16811.0,16810.0,0.53044663]
[1672984398715,0.29708464,16811.0,16810.0,0.39662758]
[1672984400073,0.29708464,16811.0,16810.0,0.53044663]
[1672984400289,0.078,16811.0,16810.0,0.53044663]
[1672984400512,0.078,16811.0,16810.0,0.99092758]
[1672984400818,0.078,16811.0,16810.0,1.12474663]
[1672984402078,0.078,16811.0,16810.0,0.82404663]
[1672984402389,0.078,16811.0,16810.0,1.42544663]
[1672984404700,0.078,16811.0,16810.0,1.33623358]
[1672984405222,0.078,16811.0,16810.0,1.42537625]
[1672984406062,0.078,16811.0,16810.0,1.2915572]
[1672984407847,0.078,16811.0,16810.0,1.42537625]
[1672984408052,0.078,16811.0,16810.0,1.33623358]
[1672984408691,0.078,16811.0,16810.0,1.51445377]
[1672984409114,0.078,16811.0,16810.0,1.33606659]
[1672984409431,0.078,16811.0,16810.0,1.87286227]
[1672984412791,0.078,16811.0,16810.0,2.0957422]
[1672984413213,0.01,16811.0,16810.0,2.08919466]
[1672984413430,0.01,16811.0,16810.0,1.86631473]
[1672984413941,0.006,16811.0,16810.0,1.97831473]
[1672984414363,0.21908464,16812.0,16810.0,1.86631473]
[1672984414574,0.006,16811.0,16810.0,1.48608718]
[1672984414778,0.006,16811.0,16810.0,1.97829963]
[1672984415416,0.006,16811.0,16810.0,2.11203258]
[1672984415627,0.006,16811.0,16810.0,1.97829963]
[1672984416686,0.006,16811.0,16810.0,2.1120392]
[1672984416891,0.006,16811.0,16810.0,1.97829963]
[1672984417633,0.006,16811.0,16810.0,2.11203282]
[1672984417946,0.006,16811.0,16810.0,1.97829963]
[1672984419415,0.006,16811.0,16810.0,2.11203963]
[1672984420679,0.006,16811.0,16810.0,1.61982718]
[1672984422363,0.006,16811.0,16810.0,2.11204343]
[1672984423209,0.006,16811.0,16810.0,1.97830343]